bitfinex/quotes_SOLUSD_20240916
["timestamp","ask_amount","ask_price","bid_price","bid_amount"]
[1726464368823,20.0,131.38,131.33,0.2572505]
[1726464369119,6.8519,131.35,131.33,0.2572505]
[1726464371187,23.776884,131.35,131.33,0.2572505]
[1726464371622,30.628784,131.35,131.33,0.2572505]
[1726464376626,20.0,131.37,131.33,0.2572505]
[1726464376808,6.8515,131.36,131.33,0.2572505]
[1726464379240,6.852,131.35,131.33,0.2572505]
[1726464381925,30.629284,131.34,131.33,0.2572505]
[1726464382126,30.629284,131.34,131.29,0.2572505]
[1726464382127,6.853,131.33,131.29,7.1121505]
[1726464382434,30.629384,131.34,131.29,7.1121505]
[1726464383430,6.853,131.33,131.29,7.1121505]
[1726464384233,6.853,131.33,131.29,0.2572505]
[1726464384612,6.8535,131.32,131.29,0.2572505]
[1726464385229,23.776884,131.32,131.29,0.2572505]
[1726464385443,6.853,131.33,131.29,7.1122505]
[1726464385620,30.629384,131.34,131.29,7.1122505]
[1726464386024,6.8525,131.34,131.3,6.8543]
[1726464386224,6.852,131.35,131.3,6.8543]
[1726464387351,23.776884,131.34,131.3,6.8543]
[1726464395932,30.629384,131.34,131.3,6.8543]
[1726464396140,30.629384,131.34,131.29,7.1121505]
[1726464396442,6.853,131.33,131.29,7.1121505]
[1726464396821,6.853,131.33,131.29,0.2572505]
[1726464397748,6.8535,131.32,131.29,0.2572505]
[1726464400150,23.776884,131.33,131.29,7.1120505]
[1726464401251,23.776884,131.33,131.3,6.8544]
[1726464403531,23.776884,131.33,131.29,7.1121505]
[1726464404038,30.629984,131.33,131.29,7.1121505]
[1726464405857,23.776884,131.33,131.3,6.8545]
[1726464406854,6.8525,131.34,131.3,6.8545]
[1726464407848,6.8525,131.34,131.29,7.1120505]
[1726464408640,6.8529,131.33,131.29,7.1120505]
[1726464416663,23.776884,131.32,131.29,0.2572505]
[1726464417256,30.630484,131.32,131.29,0.2572505]
[1726464421668,6.8541,131.31,131.29,0.2572505]
[1726464422862,6.8545,131.3,131.29,0.2572505]
[1726464423546,6.855,131.29,131.27,6.1777]
[1726464423751,6.855,131.29,131.25,40.6848505]
[1726464425157,30.631484,131.3,131.25,40.6848505]
[1726464429374,30.631484,131.3,131.26,6.8565]
[1726464430375,6.8541,131.31,131.26,6.8565]
[1726464431075,6.8536,131.32,131.27,17.1399]
[1726464432377,6.8536,131.32,131.28,6.8555]
[1726464432545,6.8536,131.32,131.27,23.9958]
[1726464432750,30.631084,131.31,131.27,17.1399]
[1726464436251,6.8546,131.3,131.27,17.1399]
[1726464437771,30.630984,131.31,131.27,23.9959]
[1726464437967,6.8536,131.32,131.28,6.8553]
[1726464438671,6.853,131.33,131.29,6.855]
[1726464438877,32.25910894,131.35,131.3,6.8544]
[1726464438878,6.8524,131.34,131.3,6.8544]
[1726464440972,6.8524,131.34,131.29,39.3657]
[1726464441159,12.00155608,131.33,131.29,15.3738]
[1726464441359,30.630784,131.32,131.29,15.3738]
[1726464444668,30.630784,131.32,131.28,6.3774]
[1726464444869,6.854,131.31,131.28,6.3774]
[1726464445066,6.854,131.31,131.27,6.8559]
[1726464445382,6.8545,131.3,131.26,40.3049]
[1726464446682,6.8545,131.3,131.26,33.4485]
[1726464448979,6.8545,131.3,131.26,40.305]
[1726464450874,23.776884,131.29,131.26,33.4485]
[1726464451473,30.632084,131.29,131.26,16.308]
[1726464451670,23.776884,131.29,131.25,0.2572505]
[1726464451876,23.776884,131.3,131.25,0.2572505]
[1726464453295,6.8562,131.27,131.25,0.2572505]
[1726464455079,6.8566,131.26,131.25,0.2572505]
[1726464456194,6.8562,131.27,131.25,0.2572505]
[1726464461602,30.633484,131.26,131.25,0.2572505]
[1726464464400,30.633484,131.26,131.22,15.836]
[1726464464401,6.8572,131.25,131.22,15.836]
[1726464464907,23.776884,131.24,131.22,15.836]
[1726464465402,30.634684,131.24,131.22,15.836]
[1726464466780,6.8581,131.23,131.21,0.2572505]
[1726464466981,30.634584,131.24,131.21,0.2572505]
[1726464467207,6.8582,131.23,131.21,0.2572505]
[1726464467379,23.776884,131.22,131.21,0.2572505]
[1726464467574,23.776884,131.23,131.21,0.2572505]
[1726464470388,30.634984,131.23,131.21,0.2572505]
[1726464475587,6.8587,131.22,131.21,0.2572505]
[1726464475788,30.635584,131.22,131.21,0.2572505]
[1726464477507,23.776884,131.22,131.21,0.2572505]
[1726464480396,19.33469757,131.27,131.21,0.2572505]
[1726464480706,12.00155608,131.29,131.22,6.8586]
[1726464480893,12.00155608,131.29,131.21,30.7989505]
[1726464481213,32.00155608,131.3,131.21,30.7989505]
[1726464481788,23.776884,131.29,131.21,30.7989505]
[1726464481993,23.776884,131.27,131.21,30.7989505]
[1726464482397,6.8566,131.26,131.21,30.7989505]
[1726464484103,30.633084,131.27,131.22,6.8586]
[1726464484522,6.8567,131.26,131.22,6.8586]
[1726464488909,6.8567,131.26,131.21,30.7989505]
[1726464492406,6.8567,131.26,131.22,6.8586]
[1726464493018,6.8567,131.26,131.22,22.098]
[1726464494210,30.632984,131.27,131.22,22.098]
[1726464494723,6.8556,131.28,131.22,16.76301498]
[1726464494902,6.8552,131.29,131.24,6.8576]
[1726464496209,23.776884,131.28,131.24,6.8576]
[1726464496818,6.8552,131.29,131.25,6.857]
[1726464497498,6.8552,131.29,131.24,6.8575]
[1726464497801,6.8557,131.28,131.24,6.8575]
[1726464498526,6.8551,131.29,131.25,6.857]
[1726464500628,6.8555,131.28,131.24,13.3839]
[1726464500831,6.8555,131.28,131.24,6.5265]
[1726464501044,6.8561,131.27,131.24,6.5265]
[1726464501206,6.8567,131.26,131.24,6.5265]
[1726464501406,6.8567,131.26,131.22,15.2394]
[1726464505240,6.8562,131.27,131.22,15.2394]
[1726464506329,6.8562,131.27,131.23,6.8581]
[1726464507044,6.8567,131.26,131.22,22.0979]
[1726464512944,6.8561,131.27,131.22,22.0979]
[1726464521559,30.633684,131.26,131.22,22.0979]
[1726464521766,6.8568,131.26,131.22,15.2394]
[1726464530352,6.8562,131.27,131.22,22.098]
[1726464530567,6.8556,131.28,131.22,15.2394]
[1726464530752,55.07785891,131.31,131.22,15.2394]
[1726464530753,6.8562,131.27,131.23,6.858]
[1726464531453,6.8566,131.26,131.22,22.0979]
[1726464532270,6.8566,131.26,131.22,39.2437]
[1726464533759,30.634084,131.25,131.22,32.3852]
[1726464547100,6.8587,131.22,131.21,0.2572505]
[1726464547402,6.8597,131.21,131.17,6.5597505]
[1726464547697,23.776884,131.21,131.17,6.5597505]
[1726464548193,30.636084,131.21,131.17,6.5597505]
[1726464548400,47.96423096,131.21,131.17,6.5597505]
[1726464548896,47.96423096,131.21,131.17,0.2572505]
[1726464552593,60.7215276,131.21,131.17,0.2572505]
[1726464553377,6.8597,131.2,131.17,0.2572505]
[1726464555605,6.8604,131.19,131.17,0.2572505]
[1726464557693,23.776884,131.18,131.17,0.2572505]
[1726464557890,6.8607,131.19,131.17,0.2572505]
[1726464558973,6.8608,131.18,131.17,0.2572505]
[1726464563906,30.637684,131.18,131.17,0.2572505]
[1726464565906,30.637684,131.18,131.14,6.1736]
[1726464565907,6.8616,131.17,131.14,6.1736]
[1726464567501,6.8616,131.17,131.13,0.2572505]
[1726464568912,30.638784,131.16,131.13,0.2572505]
[1726464569801,6.8624,131.15,131.13,0.2572505]
[1726464570608,23.776884,131.16,131.13,0.2572505]
[1726464570609,6.8619,131.16,131.13,0.2572505]
[1726464584300,6.8614,131.17,131.13,7.1202505]
[1726464584617,6.8598,131.2,131.16,6.8618]
[1726464584922,6.8598,131.2,131.16,13.1563]
[1726464586419,19.61709664,131.2,131.16,13.1563]
[1726464591119,19.61709664,131.2,131.16,6.2945]
[1726464592923,43.39438064,131.19,131.16,6.2945]
[1726464595634,30.637084,131.19,131.16,6.2945]
[1726464596720,6.8599,131.2,131.16,6.2945]
[1726464600441,19.61719664,131.2,131.16,6.2945]
[1726464602031,19.61719664,131.2,131.17,16.0052]
[1726464604448,27.49822666,131.26,131.18,8.38442597]
[1726464604614,9.5707412,131.25,131.18,24.0122]
[1726464605225,20.34264895,131.25,131.18,24.0122]
[1726464606021,6.8593,131.21,131.17,16.0052]
[1726464607333,6.8593,131.21,131.17,22.8664]
[1726464609741,23.776884,131.21,131.17,22.8664]
[1726464610081,6.8585,131.23,131.18,6.8603]
[1726464611838,6.8585,131.23,131.19,6.8602]
[1726464612824,30.634684,131.24,131.2,6.8597]
[1726464613323,16.4279412,131.25,131.21,6.859]
[1726464613552,16.4279412,131.25,131.2,13.0155]
[1726464614332,6.8577,131.24,131.2,13.0155]
[1726464622231,6.8583,131.23,131.2,6.1559]
[1726464624065,6.8587,131.22,131.2,6.1559]
[1726464624566,6.8587,131.22,131.17,29.3323]
[1726464626168,6.8593,131.21,131.17,29.3323]
[1726464626531,6.8597,131.2,131.17,22.4714]
[1726464629469,6.8603,131.19,131.16,17.1537]
[1726464629656,6.8603,131.19,131.15,6.8623]
[1726464632236,23.776884,131.19,131.15,6.8623]
[1726464636755,30.637184,131.19,131.15,6.8623]
[1726464640846,30.637184,131.19,131.14,28.8064]
[1726464643872,6.8609,131.18,131.14,28.8064]
[1726464645187,30.637184,131.19,131.15,6.8623]
[1726464645685,30.637184,131.19,131.14,28.8064]
[1726464646186,6.8609,131.18,131.14,28.8064]
[1726464649763,30.637284,131.19,131.14,28.8064]
[1726464650062,30.637284,131.19,131.15,6.8622]
[1726464653262,30.637284,131.19,131.14,28.8064]
[1726464656193,6.8608,131.18,131.14,28.8064]
[1726464659985,9.56370006,131.21,131.18,6.8605]
[1726464660294,6.8582,131.23,131.19,6.8601]
[1726464661275,6.8582,131.23,131.18,6.8606]
[1726464663493,6.8588,131.22,131.18,6.8606]
[1726464664200,23.776884,131.24,131.14,21.9437]
[1726464664502,23.776884,131.2,131.16,6.8617]
[1726464667575,6.8597,131.2,131.16,6.8617]
[1726464667895,6.8597,131.2,131.15,6.8623]
[1726464672089,23.776884,131.21,131.14,21.9437]
[1726464672398,6.8608,131.18,131.14,22.1815]
[1726464673482,30.637284,131.19,131.14,22.1815]
[1726464675597,30.636684,131.2,131.15,6.8623]
[1726464675802,30.636684,131.2,131.16,6.8617]
[1726464679284,30.636684,131.2,131.15,24.0175]
[1726464682818,9.03647784,131.21,131.18,6.8607]
[1726464683117,6.8583,131.23,131.19,8.38369126]
[1726464683421,6.8577,131.24,131.19,6.8602]
[1726464683621,9.03647784,131.25,131.2,1.52417049]
[1726464683929,15.89367784,131.25,131.21,6.8592]
[1726464686611,15.89367784,131.25,131.2,13.1651]
[1726464686823,30.634784,131.24,131.2,6.3055]
[1726464687120,30.634784,131.24,131.2,13.1651]
[1726464687491,30.634784,131.24,131.19,24.0101]
[1726464688099,6.8583,131.23,131.19,24.0101]
[1726464699110,6.8588,131.22,131.19,17.1499]
[1726464699310,6.8588,131.22,131.17,28.7733]
[1726464700239,6.8595,131.21,131.16,24.0154]
[1726464700436,6.8597,131.2,131.16,24.0154]
[1726464701135,6.8597,131.2,131.16,17.1537]
[1726464703139,6.8597,131.2,131.16,24.0154]
[1726464704722,23.776884,131.22,131.14,16.656]
[1726464705943,6.8598,131.2,131.15,6.8619]
[1726464706643,6.8598,131.2,131.16,6.8618]
[1726464708240,6.8593,131.21,131.17,6.8612]
[1726464711649,6.8593,131.21,131.16,6.8616]
[1726464712739,6.8593,131.21,131.17,6.8612]
[1726464716551,23.776884,131.2,131.13,6.6216505]
[1726464716845,21.8955,131.21,131.16,6.8613]
[1726464717226,6.8593,131.21,131.16,6.8613]
[1726464719649,23.776884,131.22,131.19,6.8597]
[1726464719973,16.3958505,131.27,131.18,20.0]
[1726464720272,23.2519505,131.27,131.2,6.8592]
[1726464720573,6.8568,131.26,131.2,24.0083]
[1726464720774,10.77190775,131.26,131.2,17.1491]
[1726464721269,6.8577,131.24,131.2,17.1491]
[1726464721467,23.776884,131.23,131.17,6.0373]
[1726464721674,6.8582,131.23,131.18,6.8607]
[1726464721981,10.77190775,131.26,131.17,6.8613]
[1726464721982,30.635584,131.22,131.17,6.8613]
[1726464725199,30.635584,131.22,131.16,40.5753]
[1726464726969,30.635584,131.22,131.17,6.8611]
[1726464727360,6.8582,131.23,131.17,6.8611]
[1726464727668,30.635584,131.22,131.17,6.8611]
[1726464728368,6.8582,131.23,131.18,6.8607]
[1726464728873,23.776884,131.23,131.19,6.8602]
[1726464729072,30.635184,131.23,131.18,6.8607]
[1726464729673,23.776884,131.23,131.19,6.8602]
[1726464731684,23.776884,131.23,131.18,17.1512]
[1726464731685,17.63060775,131.22,131.18,17.1512]
[1726464731870,30.635184,131.23,131.18,24.0119]
[1726464732255,6.8588,131.22,131.18,17.1512]
[1726464732458,6.8588,131.22,131.18,24.0119]
[1726464733395,23.776884,131.23,131.19,6.8601]
[1726464733583,23.776884,131.23,131.18,17.1512]
[1726464733584,30.635084,131.23,131.18,24.0119]
[1726464734785,6.8588,131.22,131.18,24.0119]
[1726464735169,30.635184,131.23,131.18,24.0119]
[1726464735987,36.67590575,131.27,131.19,6.8601]
[1726464735988,6.8578,131.24,131.19,6.8601]
[1726464736163,6.8572,131.25,131.2,6.8596]
[1726464736486,6.8572,131.25,131.21,6.859]
[1726464737072,6.8567,131.26,131.21,6.859]
[1726464737480,7.1134505,131.27,131.23,6.858]
[1726464737664,7.1134505,131.27,131.2,33.6503]
[1726464737665,0.2572505,131.27,131.24,6.8575]
[1726464737861,0.2572505,131.27,131.25,1.5237101]
[1726464738089,0.2572505,131.27,131.23,7.6389033]
[1726464738271,0.2572505,131.27,131.24,6.8575]
[1726464738601,0.2572505,131.27,131.25,6.8569]
[1726464738899,0.2572505,131.27,131.26,6.8566]
[1726464739586,0.2572505,131.27,131.25,6.8569]
[1726464739895,0.2572505,131.27,131.26,6.8566]
[1726464744481,0.2572505,131.27,131.25,6.857]
[1726464745303,0.2572505,131.27,131.24,24.001]
[1726464753807,0.2572505,131.27,131.24,17.1434]
[1726464754101,0.2572505,131.27,131.19,22.0754]
[1726464754102,6.8567,131.26,131.21,17.1472]
[1726464754803,6.8567,131.26,131.22,6.8585]
[1726464755806,6.8571,131.25,131.21,17.1472]
[1726464755981,6.8567,131.26,131.21,24.006]
[1726464757203,23.776884,131.25,131.21,24.006]
[1726464757510,30.634084,131.25,131.21,24.006]
[1726464772996,10.17886336,131.27,131.22,6.8582]
[1726464773199,10.17886336,131.27,131.21,17.1472]
[1726464773200,0.2572505,131.27,131.21,17.1472]
[1726464773403,24.0341345,131.27,131.23,17.1449]
[1726464774400,24.0341345,131.27,131.24,6.8576]
[1726464776299,24.0341345,131.27,131.23,24.003]
[1726464781391,24.0341345,131.27,131.23,17.1449]
[1726464781596,6.8567,131.26,131.23,17.1449]
[1726464782193,6.8567,131.26,131.22,6.8585]
[1726464782395,6.8572,131.25,131.21,6.8592]
[1726464785917,6.8568,131.26,131.21,6.8592]
[1726464786421,23.776884,131.25,131.21,6.8592]
[1726464788494,23.776884,131.26,131.22,6.8585]
[1726464790735,7.1134505,131.27,131.23,6.8581]
[1726464791220,7.1134505,131.27,131.23,8.38195031]
[1726464791422,7.1134505,131.27,131.24,18.66765032]
[1726464791423,0.2572505,131.27,131.24,18.66765032]
[1726464791597,0.2572505,131.27,131.26,6.8566]
[1726464798336,0.2572505,131.27,131.25,6.857]
[1726464798540,0.2572505,131.27,131.24,33.076]
[1726464798738,0.2572505,131.27,131.25,6.857]
[1726464798941,0.2572505,131.27,131.26,6.8566]
[1726464810122,0.2572505,131.27,131.26,28.37992963]
[1726464810328,0.2572505,131.27,131.26,42.49935317]
[1726464811135,0.2572505,131.27,131.26,22.49935317]
[1726464811348,0.2572505,131.27,131.26,42.49935317]
[1726464811857,0.2572505,131.27,131.26,26.8566]
[1726464812632,0.2572505,131.27,131.26,6.8566]
[1726464826449,0.2572505,131.27,131.26,24.02254248]
[1726464826766,0.2572505,131.27,131.26,22.49935317]
[1726464827959,0.2572505,131.27,131.26,6.8566]
[1726464842496,0.2572505,131.27,131.24,24.0013]
[1726464842677,0.2572505,131.27,131.24,17.1438]
[1726464842877,0.2572505,131.27,131.25,6.857]
[1726464844393,0.2572505,131.27,131.24,24.0014]
[1726464844692,0.2572505,131.27,131.24,17.1438]
[1726464845007,0.2572505,131.27,131.24,24.0014]
[1726464845682,0.2572505,131.27,131.24,17.1438]
[1726464848902,0.2572505,131.27,131.24,24.0014]
[1726464856798,7.1133505,131.27,131.24,17.1438]
[1726464856996,6.8567,131.26,131.22,6.8585]
[1726464858089,23.776884,131.25,131.21,24.0064]
[1726464867502,30.633984,131.25,131.21,24.0064]
[1726464875718,23.776884,131.25,131.21,24.0064]
[1726464881327,30.633984,131.25,131.21,24.0064]
[1726464882007,7.1136505,131.27,131.22,6.8585]
[1726464882727,6.8567,131.26,131.22,6.8585]
[1726464884606,23.776884,131.25,131.21,24.0064]
[1726464884927,30.634084,131.25,131.21,24.0064]
[1726464891239,6.8566,131.26,131.22,6.8586]
[1726464892644,7.1133505,131.27,131.22,6.8586]
[1726464895929,6.8568,131.26,131.22,6.8586]
[1726464896442,6.8568,131.26,131.21,24.0064]
[1726464896619,6.8572,131.25,131.21,24.0064]
[1726464902865,6.8577,131.24,131.21,17.1473]
[1726464911855,6.8573,131.25,131.21,17.1473]
[1726464913872,6.8567,131.26,131.21,17.1473]
[1726464914859,6.8567,131.26,131.22,6.8584]
[1726464915764,6.8567,131.26,131.21,24.0063]
[1726464916275,0.2572505,131.27,131.21,17.1473]
[1726464916570,7.1134505,131.27,131.23,6.8577]
[1726464923953,7.1134505,131.27,131.22,28.7036]
[1726464924765,23.776884,131.26,131.22,28.7036]
[1726464924970,30.633584,131.26,131.22,28.7036]
[1726464925675,6.8574,131.25,131.21,17.1473]
[1726464938762,30.633584,131.26,131.21,17.1473]
[1726464938965,30.633584,131.26,131.22,6.8586]
[1726464940485,7.1134505,131.27,131.23,6.8581]
[1726464941778,6.8567,131.26,131.22,6.8586]
[1726464943764,6.8572,131.25,131.21,24.0063]
[1726464945602,24.0341345,131.27,131.19,21.7762]
[1726464945806,34.80604225,131.27,131.19,21.7762]
[1726464946098,6.8577,131.24,131.2,6.8597]
[1726464951001,6.8572,131.25,131.21,6.8591]
[1726464956424,6.8579,131.24,131.2,24.0085]
[1726464958806,24.0341345,131.27,131.19,28.6363]
[1726464959016,6.8587,131.22,131.17,17.1526]
[1726464959307,6.8587,131.22,131.17,24.0135]
[1726464959502,6.8587,131.22,131.18,6.8606]
[1726464962615,6.8587,131.22,131.17,24.0137]
[1726464963286,6.8582,131.23,131.18,6.8605]
[1726464963614,23.776884,131.22,131.18,6.8605]
[1726464965807,6.8588,131.22,131.17,24.0138]
[1726464965992,23.776884,131.21,131.17,24.0138]
[1726464969094,23.776884,131.21,131.18,6.8607]
[1726464970297,23.776884,131.21,131.17,24.0138]
[1726464977591,23.776884,131.21,131.17,17.1526]
[1726464977795,6.8597,131.2,131.16,6.8617]
[1726464979211,30.637184,131.19,131.15,6.8622]
[1726464979394,6.8603,131.19,131.15,6.8622]
[1726464983122,23.776884,131.21,131.14,17.1562]
[1726464983123,6.8598,131.2,131.16,6.8616]
[1726465026551,23.776884,131.19,131.15,6.8621]
[1726465026853,30.637284,131.19,131.15,6.8621]
[1726465027848,6.8608,131.18,131.14,17.1562]
[1726465028351,6.8608,131.18,131.14,24.0189]
[1726465039551,15.8932,131.21,131.16,17.1541]
[1726465040329,22.7525,131.21,131.17,6.8612]
[1726465041631,6.8598,131.2,131.16,24.0159]
[1726465042757,17.63227564,131.2,131.16,24.0159]
[1726465043252,17.63227564,131.2,131.16,17.1541]
[1726465044260,6.8603,131.19,131.16,17.1541]
[1726465044429,30.637184,131.19,131.16,17.1541]
[1726465044629,30.637184,131.19,131.15,6.8622]
[1726465044829,23.776884,131.19,131.13,17.4148505]
[1726465045261,6.8613,131.17,131.13,24.2778505]
[1726465045560,6.8609,131.18,131.13,24.2778505]
[1726465051952,6.8615,131.17,131.13,24.2778505]
[1726465052166,6.8619,131.16,131.13,17.4148505]
[1726465053443,6.8614,131.17,131.13,17.4148505]
[1726465055650,6.8619,131.16,131.13,17.4148505]
[1726465062349,6.8619,131.16,131.13,0.2572505]
[1726465062949,6.8624,131.15,131.13,0.2572505]
[1726465068148,6.8628,131.14,131.13,0.2572505]
[1726465068356,30.639684,131.14,131.13,0.2572505]
[1726465070062,16.6606,131.18,131.13,0.2572505]
[1726465070063,6.8624,131.15,131.13,0.2572505]
[1726465070872,6.8619,131.16,131.13,0.2572505]
[1726465080286,6.8625,131.15,131.13,0.2572505]
[1726465088486,30.639684,131.14,131.13,0.2572505]
[1726465097602,6.8624,131.15,131.13,0.2572505]
[1726465101676,6.8628,131.14,131.13,0.2572505]
[1726465102000,30.639684,131.14,131.13,0.2572505]
[1726465132815,6.864,131.12,131.09,0.2572505]
[1726465137109,30.640384,131.13,131.09,0.2572505]
[1726465141828,6.864,131.12,131.09,0.2572505]
[1726465151237,6.8645,131.11,131.09,0.2572505]
[1726465153513,6.8663,131.08,131.05,0.2572505]
[1726465153927,6.8666,131.07,131.05,0.2572505]
[1726465154521,6.866,131.09,131.05,0.2572505]
[1726465154724,23.776884,131.08,131.05,0.2572505]
[1726465155446,6.8666,131.07,131.05,0.2572505]
[1726465155939,30.643884,131.06,131.05,0.2572505]
[1726465156142,23.776884,131.06,131.05,0.2572505]
[1726465156440,30.643884,131.06,131.05,0.2572505]
[1726465164147,20.0,131.07,131.02,0.2572505]
[1726465164344,23.776884,131.06,131.02,0.2572505]
[1726465164546,23.776884,131.06,131.02,16.0314505]
[1726465164747,23.776884,131.06,131.02,22.9004505]
[1726465165351,23.776884,131.06,131.03,6.8685]
[1726465165653,14.49973895,131.09,131.05,6.8675]
[1726465166335,7.63413895,131.09,131.05,6.8675]
[1726465166533,6.865,131.1,131.05,6.8675]
[1726465166740,23.776884,131.09,131.05,6.8675]
[1726465166924,6.865,131.1,131.06,6.867]
[1726465167125,17.63757564,131.1,131.05,6.8674]
[1726465168346,23.776884,131.09,131.05,6.8674]
[1726465169660,30.642384,131.09,131.05,6.8674]
[1726465172039,41.41485964,131.09,131.04,13.5131]
[1726465174854,41.41485964,131.09,131.05,6.8675]
[1726465177762,6.8676,131.05,131.04,6.6451]
[1726465178060,6.8672,131.06,131.02,16.0314505]
[1726465178964,6.8672,131.06,131.02,22.9004505]
[1726465182560,23.776884,131.05,131.02,22.9004505]
[1726465182759,30.644584,131.05,131.02,16.0314505]
[1726465196070,30.644584,131.05,131.02,0.2572505]
[1726465200361,6.8672,131.06,131.02,7.1259505]
[1726465200571,6.8662,131.08,131.04,6.8677]
[1726465200770,20.0,131.11,131.03,15.6776]
[1726465201442,30.77247564,131.11,131.03,15.6776]
[1726465201646,6.8658,131.09,131.05,6.8675]
[1726465202270,23.776884,131.08,131.05,6.8675]
[1726465202471,6.8667,131.07,131.03,22.5461]
[1726465202667,23.776884,131.06,131.03,22.5461]
[1726465203172,23.776884,131.06,131.03,15.6776]
[1726465203570,30.643984,131.06,131.03,15.6776]
[1726465205872,30.643984,131.06,131.02,7.1263505]
[1726465206247,30.643984,131.06,131.02,0.2572505]
[1726465206655,30.643984,131.06,131.02,7.1263505]
[1726465206971,30.643984,131.06,131.02,0.2572505]
[1726465208659,6.8679,131.05,131.02,0.2572505]
[1726465208862,23.776884,131.04,131.02,0.2572505]
[1726465209067,30.644984,131.04,131.02,0.2572505]
[1726465215269,27.93797564,131.08,131.02,0.2572505]
[1726465215270,23.776884,131.07,131.02,0.2572505]
[1726465215462,10.77247564,131.08,131.02,0.2572505]
[1726465215657,6.8674,131.06,131.02,7.1263505]
[1726465216262,6.8674,131.06,131.02,0.2572505]
[1726465216780,23.776884,131.05,131.02,0.2572505]
[1726465217191,30.644484,131.05,131.02,0.2572505]
[1726465219079,23.776884,131.05,131.02,0.2572505]
[1726465219774,23.776884,131.05,131.02,7.1263505]
[1726465219976,6.8661,131.08,131.03,6.8682]
[1726465220173,14.49955716,131.09,131.05,6.8675]
[1726465220370,7.63405716,131.09,131.05,6.8675]
[1726465220564,6.8651,131.1,131.06,6.8669]
[1726465221073,17.63757564,131.1,131.06,6.8669]
[1726465221610,17.63817564,131.09,131.05,6.8674]
[1726465221768,23.776884,131.08,131.04,39.7884]
[1726465222268,30.642984,131.08,131.04,39.7884]
[1726465222677,6.8665,131.07,131.04,32.9205]
[1726465223566,30.642984,131.08,131.04,39.7885]
[1726465223765,23.776884,131.08,131.05,6.8674]
[1726465224572,23.776884,131.09,131.05,6.8674]
[1726465227095,23.776884,131.1,131.04,32.9205]
[1726465227295,23.776884,131.1,131.06,6.867]
[1726465229398,6.8649,131.1,131.06,6.867]
[1726465231188,23.776884,131.09,131.05,6.8675]
[1726465231589,23.776884,131.09,131.04,39.7885]
[1726465231590,30.642384,131.09,131.04,39.7885]
[1726465231898,23.776884,131.07,131.04,32.9205]
[1726465232100,30.643384,131.07,131.04,32.9205]
[1726465233188,23.776884,131.07,131.04,32.9205]
[1726465236001,6.8655,131.09,131.04,32.9205]
[1726465236295,23.776884,131.08,131.04,32.9205]
[1726465237312,23.776884,131.08,131.04,39.7882]
[1726465240702,23.776884,131.09,131.06,6.8667]
[1726465240910,6.8646,131.11,131.07,6.8665]
[1726465241115,7.63405716,131.12,131.06,6.6123]
[1726465241282,0.2572505,131.15,131.07,16.5213]
[1726465241484,6.8637,131.13,131.08,6.8658]
[1726465242313,23.776884,131.12,131.08,24.0304]
[1726465242887,6.863,131.14,131.09,6.8654]
[1726465243092,6.863,131.14,131.1,6.8649]
[1726465243293,25.5261833,131.15,131.1,6.8649]
[1726465243499,7.89130766,131.15,131.11,13.4766]
[1726465243700,0.2572505,131.15,131.11,13.4766]
[1726465244413,7.1196505,131.15,131.11,13.4766]
[1726465247001,0.2572505,131.15,131.12,21.9946]
[1726465248225,0.2572505,131.15,131.12,15.1308]
[1726465250415,7.1197505,131.15,131.12,15.1308]
[1726465254508,0.2572505,131.15,131.12,32.2902]
[1726465254902,0.2572505,131.15,131.13,6.8632]
[1726465260926,0.2572505,131.15,131.12,39.154]
[1726465265243,0.2572505,131.15,131.13,6.8633]
[1726465271528,0.2572505,131.15,131.12,39.1539]
[1726465275213,0.2572505,131.15,131.13,6.8632]
[1726465276429,0.2572505,131.15,131.14,6.8628]